fUSD/lending_fUSD_20260624
["ID","MTS","AMOUNT","RATE_DAILY","PERIOD"]
[426290099,1782247847000,-626.0,0.00027879,9]
[426290131,1782247847000,-958.59,0.00028099,2]
[426290128,1782247847000,-276.755858,0.00028067,32]
[426290126,1782247847000,-276.755858,0.00028052,32]
[426290159,1782247847000,-749.23080482,0.00028128,2]
[426290168,1782247847000,-173.11501557,0.00028128,2]
[426290163,1782247847000,-468.14350315,0.00028128,2]
[426290167,1782247847000,-612.03556079,0.00028128,2]
[426290153,1782247847000,-151.03262562,0.00028128,2]
[426290150,1782247847000,-676.92284251,0.00028128,2]
[426290155,1782247847000,-1031.28651046,0.00028128,2]
[426290152,1782247847000,-703.86861642,0.00028128,2]
[426290154,1782247847000,-789.69202102,0.00028128,2]
[426290151,1782247847000,-229.16959365,0.00028128,2]
[426290147,1782247847000,-207.43606729,0.00028128,2]
[426290148,1782247847000,-532.55556079,0.00028128,2]
[426290149,1782247847000,-690.35358401,0.00028128,2]
[426290156,1782247847000,-419.139914,0.00028128,2]
[426290162,1782247847000,-623.25811425,0.00028128,2]
[426290145,1782247847000,-477.6410097,0.00028128,2]
[426290130,1782247847000,-276.755859,0.00028081,32]
[426290146,1782247847000,-320.40666469,0.00028128,2]
[426290137,1782247847000,-395.24140322,0.00028127,2]
[426290143,1782247847000,-437.93079565,0.00028128,2]
[426290139,1782247847000,-337.18076122,0.00028127,2]
[426290135,1782247847000,-228.95880844,0.00028127,2]
[426290133,1782247847000,-643.5220074,0.00028127,2]
[426290142,1782247847000,-382.05091341,0.00028128,2]
[426290136,1782247847000,-268.82117988,0.00028127,2]
[426290141,1782247847000,-660.60473546,0.00028128,2]
[426290140,1782247847000,-495.78762427,0.00028128,2]
[426290138,1782247847000,-496.32867111,0.00028127,2]
[426290144,1782247847000,-690.22088871,0.00028128,2]
[426290134,1782247847000,-449.92118539,0.00028127,2]
[426290262,1782247848000,-289.69334634,0.00028493,2]
[426290251,1782247848000,-9333.0,0.00028463,10]
[426290246,1782247848000,-300.0,0.000284,7]
[426290249,1782247848000,-507.12685259,0.00028439,2]
[426290247,1782247848000,-507.12685259,0.00028418,2]
[426290250,1782247848000,-459.26775131,0.00028451,2]
[426290244,1782247848000,-507.12685259,0.00028365,2]
[426290245,1782247848000,-507.12685259,0.00028371,2]
[426290243,1782247848000,-357.0,0.00028356,14]
[426290255,1782247848000,-500.0,0.00028493,2]
[426290241,1782247848000,-3789.19,0.00028355,2]
[426290248,1782247848000,-507.12685259,0.00028427,2]
[426290261,1782247848000,-500.0,0.00028493,2]
[426290260,1782247848000,-500.0,0.00028493,2]
[426290263,1782247848000,-150.0,0.00028493,2]
[426290257,1782247848000,-500.0,0.00028493,2]
[426290256,1782247848000,-500.0,0.00028493,2]
[426290258,1782247848000,-500.0,0.00028493,2]
[426290259,1782247848000,-500.0,0.00028493,2]
[426290264,1782247848000,-150.0,0.00028493,2]
[426290266,1782247848000,-150.0,0.00028493,2]
[426290270,1782247848000,-150.0,0.00028493,2]
[426290273,1782247848000,-150.0,0.00028493,2]
[426290275,1782247848000,-150.0,0.00028493,2]
[426290268,1782247848000,-150.0,0.00028493,2]
[426290252,1782247848000,-626.0,0.00028485,10]
[426290265,1782247848000,-150.0,0.00028493,2]
[426290253,1782247848000,-500.0,0.00028493,2]
[426290224,1782247848000,-611.96640821,0.00028244,2]
[426290235,1782247848000,-673.01752405,0.000283,2]
[426290217,1782247848000,-653.33181548,0.00028244,2]
[426290216,1782247848000,-777.97243514,0.00028241,2]
[426290214,1782247848000,-505.47000025,0.00028241,2]
[426290213,1782247848000,-706.67129204,0.00028241,2]
[426290215,1782247848000,-253.22983918,0.00028241,2]
[426290219,1782247848000,-339.94869564,0.00028244,2]
[426290218,1782247848000,-356.80658687,0.00028244,2]
[426290221,1782247848000,-254.69332926,0.00028244,2]
[426290220,1782247848000,-380.39682913,0.00028244,2]
[426290229,1782247848000,-507.12685259,0.00028272,2]
[426290223,1782247848000,-657.51173368,0.00028244,2]
[426290222,1782247848000,-483.51631608,0.00028244,2]
[426290226,1782247848000,-507.12685259,0.00028269,2]
[426290227,1782247848000,-447.513509,0.00028271,7]
[426290274,1782247848000,-150.0,0.00028493,2]
[426290225,1782247848000,-560.3,0.00028267,2]
[426290228,1782247848000,-429.973716,0.00028271,7]
[426290231,1782247848000,-2077.78,0.000283,7]
[426290230,1782247848000,-151.27539405,0.00028276,23]
[426290232,1782247848000,-11839.48378623,0.000283,2]
[426290233,1782247848000,-11839.4837862,0.000283,2]
[426290237,1782247848000,-673.01752403,0.000283,2]
[426290234,1782247848000,-11839.4837862,0.000283,2]
[426290239,1782247848000,-826.51,0.00028328,2]
[426290236,1782247848000,-673.01752403,0.000283,2]
[426290238,1782247848000,-350.0,0.00028319,4]
[426290240,1782247848000,-507.12685259,0.00028329,2]
[426290242,1782247848000,-2814.87,0.00028355,2]
[426290271,1782247848000,-150.0,0.00028493,2]
[426290254,1782247848000,-500.0,0.00028493,2]
[426290272,1782247848000,-150.0,0.00028493,2]
[426290306,1782247848000,-150.0,0.00028493,2]
[426290308,1782247848000,-150.0,0.00028493,2]
[426290312,1782247848000,-150.0,0.00028493,2]
[426290303,1782247848000,-150.0,0.00028493,2]
[426290304,1782247848000,-150.0,0.00028493,2]
[426290310,1782247848000,-150.0,0.00028493,2]
[426290311,1782247848000,-150.0,0.00028493,2]
[426290313,1782247848000,-150.0,0.00028493,2]
[426290315,1782247848000,-150.0,0.00028493,2]
[426290321,1782247848000,-200.0,0.00028551,2]
[426290314,1782247848000,-150.0,0.00028493,2]
[426290326,1782247848000,-300.0,0.000286,7]
[426290322,1782247848000,-151.27539405,0.00028566,24]
[426290323,1782247848000,-2508.16107959,0.000286,15]
[426290316,1782247848000,-150.0,0.00028493,2]
[426290325,1782247848000,-2077.78,0.000286,7]
[426290324,1782247848000,-2152.43,0.000286,7]
[426290318,1782247848000,-814.18765773,0.00028493,2]
[426290319,1782247848000,-3789.19,0.00028516,30]
[426290320,1782247848000,-2814.87,0.00028516,30]
[426290317,1782247848000,-3000.0,0.00028493,2]
[426290327,1782247848000,-348.63582345,0.00028658,2]
[426290328,1782247848000,-174.31791173,0.00028658,2]
[426290277,1782247848000,-150.0,0.00028493,2]
[426290332,1782247848000,-3789.19,0.00028677,7]
[426290330,1782247848000,-459.26775131,0.00028662,2]
[426290329,1782247848000,-507.12685259,0.00028659,2]
[426290309,1782247848000,-150.0,0.00028493,2]
[426290307,1782247848000,-150.0,0.00028493,2]
[426290331,1782247848000,-3668.5,0.00028677,7]
[426290302,1782247848000,-150.0,0.00028493,2]
[426290305,1782247848000,-150.0,0.00028493,2]
[426290278,1782247848000,-150.0,0.00028493,2]
[426290276,1782247848000,-150.0,0.00028493,2]
[426290267,1782247848000,-150.0,0.00028493,2]
[426290279,1782247848000,-150.0,0.00028493,2]
[426290285,1782247848000,-150.0,0.00028493,2]
[426290286,1782247848000,-150.0,0.00028493,2]
[426290281,1782247848000,-150.0,0.00028493,2]
[426290284,1782247848000,-150.0,0.00028493,2]
[426290280,1782247848000,-150.0,0.00028493,2]
[426290287,1782247848000,-150.0,0.00028493,2]
[426290283,1782247848000,-150.0,0.00028493,2]
[426290282,1782247848000,-150.0,0.00028493,2]
[426290269,1782247848000,-150.0,0.00028493,2]
[426290289,1782247848000,-150.0,0.00028493,2]
[426290288,1782247848000,-150.0,0.00028493,2]
[426290297,1782247848000,-150.0,0.00028493,2]
[426290298,1782247848000,-150.0,0.00028493,2]
[426290300,1782247848000,-150.0,0.00028493,2]
[426290296,1782247848000,-150.0,0.00028493,2]
[426290295,1782247848000,-150.0,0.00028493,2]
[426290293,1782247848000,-150.0,0.00028493,2]
[426290291,1782247848000,-150.0,0.00028493,2]
[426290292,1782247848000,-150.0,0.00028493,2]
[426290299,1782247848000,-150.0,0.00028493,2]
[426290290,1782247848000,-150.0,0.00028493,2]
[426290294,1782247848000,-150.0,0.00028493,2]
[426290301,1782247848000,-150.0,0.00028493,2]
[426290357,1782247849000,-482.36,0.00028726,2]
[426290373,1782247849000,-507.12685259,0.00028837,2]
[426290358,1782247849000,-573.72,0.00028732,2]
[426290359,1782247849000,-573.69,0.00028732,2]
[426290374,1782247849000,-150.0,0.00028855,2]
[426290363,1782247849000,-247.0,0.00028778,5]
[426290366,1782247849000,-357.0,0.000288,14]
[426290365,1782247849000,-169.58806504,0.000288,7]
[426290367,1782247849000,-500.0,0.00028807,120]
[426290370,1782247849000,-821.8896671,0.00028812,2]
[426290364,1782247849000,-165.12035089,0.00028788,2]
[426290379,1782247849000,-459.26775131,0.00028872,2]
[426290369,1782247849000,-816.66476935,0.00028812,2]
[426290372,1782247849000,-507.12685259,0.00028833,2]
[426290375,1782247849000,-158.0,0.00028858,30]
[426290377,1782247849000,-370.0,0.00028858,30]
[426290378,1782247849000,-199.0,0.00028858,30]
[426290386,1782247849000,-620.0,0.00028915,30]
[426290382,1782247849000,-706.0,0.000289,2]
[426290381,1782247849000,-2077.78,0.000289,7]
[426290376,1782247849000,-279.0,0.00028858,30]
[426290380,1782247849000,-573.72,0.00028892,2]
[426290353,1782247849000,-507.12685259,0.00028705,2]
[426290371,1782247849000,-764.95801026,0.00028812,2]
[426290355,1782247849000,-674.0,0.00028709,2]
[426290348,1782247849000,-1496.88308023,0.00028693,2]
[426290352,1782247849000,-503.0,0.00028696,2]
[426290383,1782247849000,-503.39,0.000289,72]
[426290338,1782247849000,-879.83577053,0.00028693,2]
[426290333,1782247849000,-2814.87,0.00028677,7]
[426290337,1782247849000,-862.77611089,0.00028693,2]
[426290334,1782247849000,-804.40250925,0.00028693,2]
[426290336,1782247849000,-825.75591933,0.00028693,2]
[426290335,1782247849000,-507.12685259,0.00028693,2]
[426290339,1782247849000,-987.11502628,0.00028693,2]
[426290342,1782247849000,-779.07264281,0.00028693,2]
[426290341,1782247849000,-795.06045429,0.00028693,2]
[426290343,1782247849000,-871.53244309,0.00028693,2]
[426290344,1782247849000,-950.26944939,0.00028693,2]
[426290349,1782247849000,-865.32329309,0.00028693,2]
[426290350,1782247849000,-889.67028815,0.00028693,2]
[426290340,1782247849000,-1289.10813807,0.00028693,2]
[426290345,1782247849000,-765.97320962,0.00028693,2]
[426290346,1782247849000,-1664.65813272,0.00028693,2]
[426290347,1782247849000,-931.16143045,0.00028693,2]
[426290351,1782247849000,-785.91167258,0.00028693,2]
[426290356,1782247849000,-482.48,0.0002872,2]
[426290362,1782247849000,-150.0,0.00028767,2]
[426290360,1782247849000,-507.12685259,0.00028764,2]
[426290354,1782247849000,-290.3986294,0.00028708,2]
[426290361,1782247849000,-543.82,0.00028767,2]
[426290385,1782247849000,-507.12685259,0.00028906,2]
[426290368,1782247849000,-1000.0,0.00028807,2]
[426290384,1782247849000,-1347.0,0.000289,2]
[426290415,1782247849000,-500.0,0.00029,2]
[426290416,1782247849000,-500.0,0.00029,2]
[426290418,1782247849000,-223.71730258,0.00029,2]
[426290419,1782247849000,-219.05497627,0.00029,2]
[426290417,1782247849000,-265.22186754,0.00029,2]
[426290421,1782247849000,-200.0,0.00029,2]
[426290420,1782247849000,-545.06019224,0.00029,2]
[426290422,1782247849000,-200.0,0.00029,2]
[426290424,1782247849000,-200.0,0.00029,2]
[426290423,1782247849000,-200.0,0.00029,2]
[426290425,1782247849000,-200.0,0.00029,2]
[426290414,1782247849000,-500.0,0.00029,2]
[426290428,1782247849000,-500.0,0.00029,2]
[426290432,1782247849000,-500.0,0.00029,2]
[426290429,1782247849000,-500.0,0.00029,2]
[426290431,1782247849000,-331.11,0.00029,2]
[426290435,1782247849000,-500.0,0.00029,2]
[426290430,1782247849000,-500.0,0.00029,2]
[426290434,1782247849000,-500.0,0.00029,2]
[426290426,1782247849000,-200.0,0.00029,2]
[426290433,1782247849000,-500.0,0.00029,2]
[426290437,1782247849000,-500.0,0.00029,2]
[426290436,1782247849000,-500.0,0.00029,2]
[426290387,1782247849000,-2089.0,0.00028915,30]
[426290427,1782247849000,-500.0,0.00029,2]
[426290412,1782247849000,-500.0,0.00029,2]
[426290438,1782247849000,-500.0,0.00029,2]
[426290407,1782247849000,-500.0,0.00029,2]
[426290406,1782247849000,-500.0,0.00029,2]
[426290399,1782247849000,-507.12685259,0.00028964,2]
[426290392,1782247849000,-299.0,0.00028917,30]
[426290396,1782247849000,-507.12685259,0.00028927,2]
[426290390,1782247849000,-178.0,0.00028917,30]
[426290395,1782247849000,-154.0,0.00028917,30]
[426290393,1782247849000,-256.0,0.00028917,30]
[426290391,1782247849000,-226.0,0.00028917,30]
[426290388,1782247849000,-151.27539405,0.00028915,26]
[426290394,1782247849000,-1004.0,0.00028917,30]
[426290397,1782247849000,-507.12685259,0.00028928,2]
[426290398,1782247849000,-507.12685259,0.00028957,2]
[426290389,1782247849000,-220.0,0.00028917,30]
[426290409,1782247849000,-500.0,0.00029,2]
[426290439,1782247849000,-500.0,0.00029,2]
[426290401,1782247849000,-150.0,0.00028971,2]
[426290410,1782247849000,-500.0,0.00029,2]
[426290402,1782247849000,-500.0,0.00029,2]
[426290408,1782247849000,-500.0,0.00029,2]
[426290403,1782247849000,-500.0,0.00029,2]
[426290405,1782247849000,-500.0,0.00029,2]
[426290413,1782247849000,-500.0,0.00029,2]
[426290404,1782247849000,-500.0,0.00029,2]
[426290411,1782247849000,-500.0,0.00029,2]
[426290400,1782247849000,-217.0,0.00028971,2]
[426290479,1782247850000,-155.0,0.00029,4]
[426290477,1782247850000,-155.0,0.00029,4]
[426290474,1782247850000,-155.0,0.00029,4]
[426290471,1782247850000,-155.0,0.00029,4]
[426290462,1782247850000,-153.0,0.00029,4]
[426290467,1782247850000,-153.0,0.00029,4]
[426290472,1782247850000,-155.0,0.00029,4]
[426290465,1782247850000,-153.0,0.00029,4]
[426290463,1782247850000,-153.0,0.00029,4]
[426290464,1782247850000,-153.0,0.00029,4]
[426290480,1782247850000,-155.0,0.00029,4]
[426290484,1782247850000,-155.0,0.00029,4]
[426290485,1782247850000,-155.0,0.00029,4]
[426290482,1782247850000,-155.0,0.00029,4]
[426290478,1782247850000,-155.0,0.00029,4]
[426290475,1782247850000,-155.0,0.00029,4]
[426290481,1782247850000,-155.0,0.00029,4]
[426290483,1782247850000,-155.0,0.00029,4]
[426290486,1782247850000,-155.0,0.00029,4]
[426290488,1782247850000,-800.0,0.00029008,11]
[426290487,1782247850000,-155.0,0.00029,4]
[426290466,1782247850000,-153.0,0.00029,4]
[426290491,1782247850000,-800.0,0.00029008,11]
[426290476,1782247850000,-155.0,0.00029,4]
[426290473,1782247850000,-155.0,0.00029,4]
[426290453,1782247850000,-307.76,0.00029,7]
[426290468,1782247850000,-153.0,0.00029,4]
[426290490,1782247850000,-704.93046732,0.00029008,11]
[426290440,1782247850000,-500.0,0.00029,2]
[426290441,1782247850000,-500.0,0.00029,2]
[426290443,1782247850000,-500.0,0.00029,2]
[426290445,1782247850000,-500.0,0.00029,2]
[426290444,1782247850000,-500.0,0.00029,2]
[426290446,1782247850000,-500.0,0.00029,2]
[426290450,1782247850000,-2152.43,0.00029,7]
[426290448,1782247850000,-597.79,0.00029,2]
[426290447,1782247850000,-500.0,0.00029,2]
[426290442,1782247850000,-500.0,0.00029,2]
[426290449,1782247850000,-176.96574042,0.00029,14]
[426290451,1782247850000,-725.0,0.00029,7]
[426290455,1782247850000,-157.0,0.00029,4]
[426290452,1782247850000,-500.0,0.00029,2]
[426290454,1782247850000,-500.0,0.00029,2]
[426290461,1782247850000,-153.0,0.00029,4]
[426290457,1782247850000,-153.0,0.00029,4]
[426290459,1782247850000,-153.0,0.00029,4]
[426290458,1782247850000,-153.0,0.00029,4]
[426290460,1782247850000,-153.0,0.00029,4]
[426290456,1782247850000,-153.0,0.00029,4]
[426290470,1782247850000,-158.0,0.00029,4]
[426290469,1782247850000,-153.0,0.00029,4]
[426290489,1782247850000,-800.0,0.00029008,11]
[426290495,1782247850000,-800.0,0.00029008,11]
[426290492,1782247850000,-800.0,0.00029008,11]
[426290522,1782247850000,-200.0,0.00029254,2]
[426290523,1782247850000,-301.14337869,0.00029256,2]
[426290525,1782247850000,-2077.78,0.000293,7]
[426290524,1782247850000,-459.26775131,0.00029294,2]
[426290529,1782247850000,-166.0,0.00029366,7]
[426290530,1782247850000,-166.0,0.00029366,7]
[426290526,1782247850000,-200.0,0.00029305,2]
[426290527,1782247850000,-151.27539405,0.00029327,27]
[426290528,1782247850000,-475438.4060826,0.00029353,2]
[426290532,1782247850000,-3562.0,0.00029385,2]
[426290533,1782247850000,-1277.0,0.00029385,2]
[426290521,1782247850000,-747.80937859,0.00029253,2]
[426290531,1782247850000,-152391.4299907,0.00029376,2]
[426290535,1782247850000,-1361.0,0.00029385,2]
[426290536,1782247850000,-1229.0,0.00029385,2]
[426290537,1782247850000,-6083.0,0.00029385,2]
[426290540,1782247850000,-1000.0,0.00029389,2]
[426290538,1782247850000,-216.0,0.00029385,2]
[426290541,1782247850000,-323046.9760919,0.0002939,2]
[426290539,1782247850000,-500.0,0.00029389,120]
[426290493,1782247850000,-800.0,0.00029008,11]
[426290545,1782247850000,-4762474.6940274,0.000294,2]
[426290544,1782247850000,-156.64994,0.000294,2]
[426290543,1782247850000,-151.0,0.000294,2]
[426290534,1782247850000,-383.0,0.00029385,2]
[426290520,1782247850000,-644.79446245,0.00029253,2]
[426290542,1782247850000,-178.64205784,0.00029399,2]
[426290519,1782247850000,-445.365716,0.00029206,7]
[426290494,1782247850000,-800.0,0.00029008,11]
[426290496,1782247850000,-800.0,0.00029008,11]
[426290508,1782247850000,-534.05,0.000291,2]
[426290505,1782247850000,-23934.6,0.000291,30]
[426290501,1782247850000,-507.12685259,0.00029049,2]
[426290506,1782247850000,-404.59,0.000291,2]
[426290503,1782247850000,-459.26775131,0.00029083,2]
[426290499,1782247850000,-3000.0,0.00029041,2]
[426290507,1782247850000,-2530.14,0.000291,4]
[426290497,1782247850000,-800.0,0.00029008,11]
[426290502,1782247850000,-507.12685259,0.00029065,2]
[426290498,1782247850000,-800.0,0.00029008,11]
[426290500,1782247850000,-814.18765773,0.00029041,2]
[426290513,1782247850000,-534.05,0.000291,2]
[426290509,1782247850000,-534.05,0.000291,2]
[426290515,1782247850000,-507.12685259,0.00029149,2]
[426290514,1782247850000,-507.12685259,0.00029127,2]
[426290518,1782247850000,-497.587524,0.00029206,7]
[426290517,1782247850000,-260.0,0.00029205,12]
[426290511,1782247850000,-534.05,0.000291,2]
[426290510,1782247850000,-534.05,0.000291,2]
[426290512,1782247850000,-534.05,0.000291,2]
[426290504,1782247850000,-626.0,0.00029091,10]
[426290516,1782247850000,-260.0,0.00029205,12]
[426290577,1782247851000,-986.26760052,0.00029663,2]
[426290574,1782247851000,-2077.78,0.000296,7]
[426290579,1782247851000,-626.0,0.00029697,11]
[426290576,1782247851000,-979.99772322,0.00029663,2]
[426290573,1782247851000,-156.64994,0.000296,2]
[426290578,1782247851000,-917.94961232,0.00029663,2]
[426290572,1782247851000,-814.18765773,0.00029589,2]
[426290575,1782247851000,-2110.0,0.00029636,2]
[426290569,1782247851000,-220.67,0.00029553,2]
[426290590,1782247851000,-200.37360741,0.000297,2]
[426290583,1782247851000,-1000.0,0.000297,2]
[426290584,1782247851000,-1000.0,0.000297,2]
[426290585,1782247851000,-1231.82,0.000297,2]
[426290580,1782247851000,-1000.0,0.000297,2]
[426290582,1782247851000,-1231.83,0.000297,2]
[426290587,1782247851000,-1000.0,0.000297,2]
[426290586,1782247851000,-1615.91,0.000297,2]
[426290588,1782247851000,-1000.0,0.000297,2]
[426290589,1782247851000,-1231.83,0.000297,2]
[426290571,1782247851000,-3000.0,0.00029589,2]
[426290581,1782247851000,-1000.0,0.000297,2]
[426290570,1782247851000,-482.43,0.00029554,2]
[426290567,1782247851000,-1038.38795171,0.00029542,2]
[426290558,1782247851000,-1184.53803154,0.00029542,2]
[426290591,1782247851000,-1846.32,0.00029715,2]
[426290554,1782247851000,-2152.43,0.000295,7]
[426290553,1782247851000,-347.66033573,0.000295,120]
[426290546,1782247851000,-1150.4948476,0.000294,2]
[426290547,1782247851000,-1150.4948476,0.000294,2]
[426290552,1782247851000,-23934.6,0.000295,30]
[426290549,1782247851000,-500.0,0.00029499,120]
[426290550,1782247851000,-1000.0,0.00029499,2]
[426290548,1782247851000,-543.82,0.00029419,2]
[426290551,1782247851000,-119673.0,0.000295,30]
[426290556,1782247851000,-1035.33133307,0.00029542,2]
[426290566,1782247851000,-1796.25969627,0.00029542,2]
[426290555,1782247851000,-1846.32,0.00029505,2]
[426290565,1782247851000,-929.89183784,0.00029542,2]
[426290561,1782247851000,-1140.32333927,0.00029542,2]
[426290562,1782247851000,-919.16785155,0.00029542,2]
[426290564,1782247851000,-1117.39371654,0.00029542,2]
[426290560,1782247851000,-1045.83893171,0.00029542,2]
[426290559,1782247851000,-1546.92976569,0.00029542,2]
[426290563,1782247851000,-1997.58975926,0.00029542,2]
[426290557,1782247851000,-1055.80292463,0.00029542,2]
[426290568,1782247851000,-943.0940071,0.00029542,2]
[426290594,1782247851000,-150.297301,0.0002973,28]
[426290602,1782247851000,-500.0,0.00029799,120]
[426290599,1782247851000,-500.0,0.00029799,120]
[426290621,1782247851000,-1000.0,0.00029799,2]
[426290626,1782247851000,-1000.0,0.00029799,2]
[426290623,1782247851000,-1000.0,0.00029799,2]
[426290616,1782247851000,-1000.0,0.00029799,2]
[426290625,1782247851000,-1000.0,0.00029799,2]
[426290624,1782247851000,-1000.0,0.00029799,2]
[426290622,1782247851000,-1000.0,0.00029799,2]
[426290628,1782247851000,-1000.0,0.00029799,2]
[426290638,1782247851000,-139306.58532023,0.000298,2]
[426290619,1782247851000,-1000.0,0.00029799,2]
[426290627,1782247851000,-1000.0,0.00029799,2]
[426290630,1782247851000,-1000.0,0.00029799,2]
[426290631,1782247851000,-1000.0,0.00029799,2]
[426290633,1782247851000,-1000.0,0.00029799,2]
[426290632,1782247851000,-1000.0,0.00029799,2]
[426290636,1782247851000,-1000.0,0.00029799,2]
[426290634,1782247851000,-1000.0,0.00029799,2]
[426290635,1782247851000,-1000.0,0.00029799,2]
[426290637,1782247851000,-1000.0,0.00029799,2]
[426290639,1782247851000,-3376.0811103,0.000298,2]
[426290629,1782247851000,-1000.0,0.00029799,2]
[426290620,1782247851000,-1000.0,0.00029799,2]
[426290617,1782247851000,-1000.0,0.00029799,2]
[426290618,1782247851000,-1000.0,0.00029799,2]
[426290597,1782247851000,-500.0,0.00029799,120]
[426290592,1782247851000,-2000.0,0.00029716,7]
[426290593,1782247851000,-4141.16964556,0.00029717,2]
[426290598,1782247851000,-500.0,0.00029799,120]
[426290601,1782247851000,-500.0,0.00029799,120]
[426290595,1782247851000,-1001.0,0.0002975,2]
[426290600,1782247851000,-500.0,0.00029799,120]
[426290610,1782247851000,-1000.0,0.00029799,2]
[426290612,1782247851000,-1000.0,0.00029799,2]
[426290611,1782247851000,-1000.0,0.00029799,2]
[426290613,1782247851000,-1000.0,0.00029799,2]
[426290614,1782247851000,-1000.0,0.00029799,2]
[426290603,1782247851000,-500.0,0.00029799,120]
[426290640,1782247851000,-2379357.59443263,0.000298,2]
[426290606,1782247851000,-1000.0,0.00029799,2]
[426290608,1782247851000,-1000.0,0.00029799,2]
[426290604,1782247851000,-465.5239493,0.00029799,120]
[426290605,1782247851000,-1000.0,0.00029799,2]
[426290607,1782247851000,-1000.0,0.00029799,2]
[426290609,1782247851000,-1000.0,0.00029799,2]
[426290615,1782247851000,-1000.0,0.00029799,2]
[426290641,1782247851000,-217537.40384226,0.000298,2]
[426290596,1782247851000,-2006.53262393,0.0002975,2]
[426290642,1782247852000,-500.0,0.000298,2]
[426290644,1782247852000,-2721.27630783,0.000298,2]
[426290643,1782247852000,-946.99,0.00027885,30]
[426290645,1782247853000,-199.0,0.00022,2]
[426290646,1782247853000,-199.0,0.00023,2]
[426290647,1782247853000,-946.99,0.00027916,2]
[426290651,1782247853000,-500.91301647,0.00027977,30]
[426290650,1782247853000,-499.08698353,0.00027946,7]
[426290649,1782247853000,-310.0,0.00027946,7]
[426290653,1782247853000,-946.99,0.00028007,2]
[426290655,1782247853000,-797.53998973,0.00028068,30]
[426290656,1782247853000,-955.14214702,0.0002,2]
[426290652,1782247853000,-446.07698353,0.00027977,30]
[426290657,1782247853000,-522.9232407,0.0002,2]
[426290654,1782247853000,-946.99,0.00028038,7]
[426290648,1782247853000,-137.90301647,0.00027946,7]
[426290659,1782247854000,-230.07532635,0.00016,2]
[426290661,1782247854000,-2816.477099,0.0002,2]
[426290660,1782247854000,-1358.24975243,0.0002,2]
[426290658,1782247854000,-252.28794082,0.00014394,2]
[426290663,1782247855000,-230.07532635,0.000161,2]
[426290662,1782247855000,-252.28794082,0.00015467,2]
[426290668,1782247855000,-5072.51159551,0.0002,2]
[426290666,1782247855000,-259.96499999,0.0002,2]
[426290664,1782247855000,-230.07532635,0.000162,2]
[426290667,1782247855000,-1261.16862376,0.0002,2]
[426290669,1782247855000,-1465.41196313,0.0002,2]
[426290665,1782247855000,-1056.06705072,0.0002,2]
[426290670,1782247984000,-500.0,8.725e-05,2]
[426290697,1782249031000,-160.0,8.911e-05,2]
[426290698,1782249031000,-150.0,8.999e-05,2]
[426290699,1782249031000,-150.0,9.089e-05,2]
[426290700,1782249031000,-150.0,9.179e-05,2]
[426290702,1782249031000,-235.20208545,0.0001,2]
[426290701,1782249031000,-150.0,9.269e-05,2]
[426290722,1782249037000,-166.66,0.00011557,2]
[426290720,1782249037000,-166.66,0.00011323,2]